bitfinex/quotes_ETHUSD_20250602
["timestamp","ask_amount","ask_price","bid_price","bid_amount"]
[1748871335770,0.6867,2509.9,2509.8,4.511]
[1748871336343,0.7832,2509.8,2509.2,4.51]
[1748871336556,10.29737677,2509.6,2509.3,3.98507853]
[1748871336869,10.29737677,2509.6,2509.1,3.98537233]
[1748871337071,3.98493265,2509.5,2509.2,4.514]
[1748871337281,10.29737677,2509.3,2508.2,9.45898008]
[1748871337433,10.29737677,2508.9,2508.6,4.516]
[1748871337637,10.29737677,2508.9,2508.8,3.98596938]
[1748871337857,0.7832,2509.2,2508.7,3.98607795]
[1748871338178,0.7832,2509.2,2508.9,3.98578202]
[1748871338344,10.29737677,2509.3,2508.9,3.98578202]
[1748871338345,1.5199,2509.9,2509.4,3.98486566]
[1748871338546,1.5199,2509.9,2509.5,3.98485754]
[1748871338810,1.5199,2509.9,2509.6,3.98462348]
[1748871339071,10.29737677,2509.7,2509.4,3.98485882]
[1748871339275,10.29737677,2509.7,2509.1,5.3114928]
[1748871339432,10.29737677,2509.7,2509.2,8.50321219]
[1748871339633,0.6867,2509.9,2509.8,3.98438122]
[1748871339896,0.6867,2509.9,2509.6,8.50461061]
[1748871340028,0.6867,2509.9,2509.6,3.98461749]
[1748871340234,10.29737677,2509.8,2509.7,4.518]
[1748871342072,0.6867,2509.9,2509.7,8.50245557]
[1748871342274,0.6867,2509.9,2509.8,3.98438122]
[1748871342870,0.6867,2509.9,2509.8,4.52807769]
[1748871343256,0.6867,2509.9,2509.7,3.98447947]
[1748871343462,0.6867,2509.9,2509.8,8.49438122]
[1748871344492,0.6867,2509.9,2509.8,4.51]
[1748871344700,0.6867,2509.9,2509.8,4.509]
[1748871345410,0.6867,2509.9,2509.8,8.49338122]
[1748871345567,0.6867,2509.9,2509.8,10.542943]
[1748871345890,0.6867,2509.9,2509.8,6.033943]
[1748871346061,0.6867,2509.9,2509.8,3.98438122]
[1748871346267,0.6867,2509.9,2509.8,9.81438122]
[1748871346850,0.6867,2509.9,2509.8,3.98438122]
[1748871347092,0.6867,2509.9,2509.8,8.49338122]
[1748871348787,0.6867,2509.9,2509.8,16.49338122]
[1748871348991,0.6867,2509.9,2509.8,17.27558122]
[1748871349692,0.6867,2509.9,2509.8,18.58958122]
[1748871349868,0.6867,2509.9,2509.8,10.58758122]
[1748871350064,0.6867,2509.9,2509.8,6.08658122]
[1748871350285,0.6867,2509.9,2509.8,10.58658122]
[1748871350596,0.6867,2509.9,2509.8,20.04369103]
[1748871351103,0.6867,2509.9,2509.8,20.04569103]
[1748871351507,0.6867,2509.9,2509.8,15.54369103]
[1748871351706,0.6867,2509.9,2509.8,20.04569103]
[1748871352779,0.6867,2509.9,2509.8,15.54369103]
[1748871353079,0.6867,2509.9,2509.8,14.76149103]
[1748871353285,0.6867,2509.9,2509.8,13.44149103]
[1748871353478,0.6867,2509.9,2509.8,17.94149103]
[1748871354599,0.6867,2509.9,2509.8,5.44149103]
[1748871354795,0.6867,2509.9,2509.8,8.48238122]
[1748871355472,0.6867,2509.9,2509.8,3.98438122]
[1748871355672,0.6867,2509.9,2509.8,8.47938122]
[1748871355911,0.6867,2509.9,2509.8,3.98438122]
[1748871356227,0.6867,2509.9,2509.7,3.98453998]
[1748871356520,0.6867,2509.9,2509.8,3.98438122]
[1748871356872,0.6867,2509.9,2509.7,8.47645123]
[1748871357072,0.6867,2509.9,2509.8,3.98438122]
[1748871358015,0.6867,2509.9,2509.2,0.7957]
[1748871358215,0.6867,2509.9,2509.8,3.98438122]
[1748871358412,0.6867,2509.9,2509.7,3.9844918]
[1748871358623,0.6867,2509.9,2509.2,14.10090238]
[1748871358624,10.29737677,2509.8,2509.2,1.32]
[1748871358810,14.28178505,2509.8,2509.4,3.98493774]
[1748871359011,10.29737677,2509.8,2509.3,4.53585023]
[1748871359207,10.29737677,2509.5,2509.2,1.32]
[1748871359409,10.29737677,2509.5,2509.2,5.816]
[1748871359715,10.29737677,2509.8,2509.3,0.03984903]
[1748871359891,10.29737677,2509.8,2509.5,3.98474726]
[1748871360285,10.29737677,2509.8,2509.6,3.98469624]
[1748871360618,0.6867,2509.9,2509.8,3.98438122]
[1748871360801,0.6867,2509.9,2509.8,4.95890078]
[1748871361515,0.6867,2509.9,2509.8,12.99873633]
[1748871361719,0.6867,2509.9,2509.8,12.95890078]
[1748871361921,0.6867,2509.9,2509.8,13.73860078]
[1748871363516,0.6867,2509.9,2509.8,22.34360078]
[1748871363696,0.6867,2509.9,2509.8,22.74618508]
[1748871364127,0.15620539,2510.7,2510.6,3.9831116]
[1748871364420,0.15620539,2510.7,2510.6,1.32]
[1748871364825,0.15620539,2510.7,2510.6,5.3031116]
[1748871365000,0.15620539,2510.7,2510.6,6.0957116]
[1748871365322,0.15620539,2510.7,2510.6,14.0957116]
[1748871365525,0.15620539,2510.7,2510.6,15.07023116]
[1748871365681,0.15620539,2510.7,2510.6,13.75023116]
[1748871365885,0.15620539,2510.7,2510.6,19.56623116]
[1748871366081,0.15620539,2510.7,2510.6,15.07023116]
[1748871366320,0.15620539,2510.7,2510.6,19.56523116]
[1748871366684,0.15620539,2510.7,2510.6,14.27763116]
[1748871367018,0.15620539,2510.7,2510.6,1.32]
[1748871367318,0.15620539,2510.7,2510.6,9.8001116]
[1748871367882,0.15620539,2510.7,2510.5,4.495]
[1748871368082,0.8182,2510.6,2510.4,1.32]
[1748871368279,3.98327026,2510.5,2510.4,1.32]
[1748871368479,3.9836718,2510.3,2509.8,12.5893199]
[1748871368684,15.10415329,2510.0,2509.3,3.98505782]
[1748871368953,2.74651909,2510.5,2509.4,5.817]
[1748871369235,0.8227,2510.5,2510.2,3.98361137]
[1748871370037,0.8227,2510.5,2510.3,3.98349477]
[1748871370347,0.8227,2510.5,2510.1,4.497]
[1748871370348,3.98315186,2510.6,2510.1,3.98377795]
[1748871370483,0.15620539,2510.7,2510.3,4.495]
[1748871370798,0.15620539,2510.7,2510.3,3.98342955]
[1748871370991,0.15620539,2510.7,2510.3,0.03983162]
[1748871371323,0.15620539,2510.7,2510.1,1.32]
[1748871371324,0.7724,2510.4,2510.1,1.32]
[1748871371524,10.29737677,2510.2,2509.5,1.32]
[1748871371730,10.29737677,2509.9,2509.5,1.32]
[1748871372034,3.98325487,2510.6,2510.1,3.98387471]
[1748871372035,3.98318304,2510.6,2510.1,3.98387471]
[1748871372214,0.7928,2510.6,2509.9,4.496]
[1748871372414,0.7928,2510.6,2510.2,3.98365105]
[1748871372621,0.7928,2510.6,2509.9,4.496]
[1748871372622,0.7928,2510.6,2510.4,3.98335024]
[1748871372822,0.7928,2510.6,2510.1,0.03983001]
[1748871373141,0.15620539,2510.7,2510.5,3.98327026]
[1748871373323,0.15620539,2510.7,2510.6,4.02294149]
[1748871373531,0.15620539,2510.7,2510.6,12.02294149]
[1748871373756,0.15620539,2510.7,2510.6,11.9831116]
[1748871375660,0.15620539,2510.7,2510.6,12.7616116]
[1748871375963,0.15620539,2510.7,2510.6,13.86429797]
[1748871376559,5.10531011,2511.2,2511.1,12.7608185]
[1748871376724,5.10531011,2511.2,2511.1,17.2528185]
[1748871377262,0.02,2511.9,2511.8,3.98120869]
[1748871377559,0.02,2511.9,2511.8,19.40176218]
[1748871377755,0.02,2511.9,2511.8,19.36196417]
[1748871377957,0.5867,2512.0,2511.8,5.809]
[1748871378117,0.5867,2512.0,2511.6,8.603]
[1748871378118,3.98115049,2511.9,2511.6,8.603]
[1748871378318,0.8121,2511.3,2510.5,1.312]
[1748871378534,10.29737677,2511.1,2510.5,1.312]
[1748871378735,3.98296944,2510.7,2510.5,1.312]
[1748871378997,0.8121,2510.7,2510.5,1.312]
[1748871379449,10.29737677,2510.8,2510.5,1.312]
[1748871379635,10.29737677,2510.9,2510.7,3.98295296]
[1748871380022,10.29737677,2510.9,2510.8,3.98279432]
[1748871380368,10.29737677,2510.9,2510.7,4.02275567]
[1748871380369,10.29737677,2510.9,2510.6,4.504]
[1748871380720,10.29737677,2510.9,2510.5,1.312]
[1748871380921,0.8298,2511.4,2510.5,9.79527026]
[1748871380922,10.29737677,2510.6,2510.5,9.79527026]
[1748871381146,10.29737677,2511.2,2511.0,3.98245477]
[1748871381357,4.80751079,2511.8,2511.2,3.98207711]
[1748871381565,17.09899291,2511.7,2511.3,1.312]
[1748871381720,1.79252929,2511.6,2511.3,5.29399702]
[1748871381918,13.11761407,2511.7,2511.3,5.29393052]
[1748871382120,0.8263,2511.8,2511.6,3.98141707]
[1748871382369,0.5367,2512.0,2511.7,3.9812696]
[1748871382669,0.5367,2512.0,2511.8,3.98119231]
[1748871382853,0.5367,2512.0,2511.9,8.4870502]
[1748871383721,0.5367,2512.0,2511.9,9.73387423]
[1748871384118,0.5367,2512.0,2511.9,17.73387423]
[1748871385257,0.5367,2512.0,2511.9,17.7940502]
[1748871386873,0.5367,2512.0,2511.9,11.9810502]
[1748871387171,0.5367,2512.0,2511.9,17.7910502]
[1748871388267,0.5367,2512.0,2511.9,11.9810502]
[1748871388475,0.5367,2512.0,2511.6,1.312]
[1748871388771,0.7516,2511.8,2511.6,3.98152572]
[1748871388975,0.5367,2512.0,2511.9,3.9810502]
[1748871390033,0.5367,2512.0,2511.0,1.312]
[1748871390232,0.5367,2512.0,2511.9,3.9810502]
[1748871390432,0.5367,2512.0,2511.9,4.0208585]
[1748871390683,0.5367,2512.0,2511.9,5.2309542]
[1748871390889,0.5367,2512.0,2511.9,13.2309542]
[1748871391855,0.5367,2512.0,2511.9,16.4840502]
[1748871393174,0.5367,2512.0,2511.9,8.4810502]
[1748871394129,0.5367,2512.0,2511.9,17.2699502]
[1748871394876,0.5367,2512.0,2511.9,18.5809502]
[1748871395179,0.5367,2512.0,2511.9,17.7930502]
[1748871395483,0.5367,2512.0,2511.9,9.7930502]
[1748871395786,0.5367,2512.0,2511.9,17.7930502]
[1748871396542,0.5367,2512.0,2511.9,13.2930502]
[1748871396735,0.5367,2512.0,2511.9,17.7960502]
[1748871398545,0.5367,2512.0,2511.9,11.9810502]
[1748871398760,0.5367,2512.0,2511.9,17.7910502]
[1748871399354,0.5367,2512.0,2511.9,13.2930502]
[1748871399654,0.5367,2512.0,2511.9,17.7900502]
[1748871400547,0.5367,2512.0,2511.9,11.9810502]
[1748871400747,0.5367,2512.0,2511.9,16.4820502]
[1748871401257,0.5367,2512.0,2511.9,17.2346502]
[1748871401457,0.5367,2512.0,2511.9,27.49181834]
[1748871402691,0.5367,2512.0,2511.9,14.0446502]
[1748871403081,0.5367,2512.0,2511.9,5.2920502]
[1748871403967,0.5367,2512.0,2511.9,5.33185452]
[1748871404176,0.5367,2512.0,2511.9,13.33185414]
[1748871404378,0.5367,2512.0,2511.9,13.2920502]
[1748871404990,0.5367,2512.0,2511.9,17.7960502]
[1748871405187,0.5367,2512.0,2511.9,11.9810502]
[1748871405389,0.5367,2512.0,2511.9,17.7960502]
[1748871405664,0.5367,2512.0,2511.9,5.2970502]
[1748871405860,0.5367,2512.0,2511.9,9.7940502]
[1748871406101,0.5367,2512.0,2511.9,5.2970502]
[1748871406423,0.5367,2512.0,2511.9,9.7930502]
[1748871407196,0.5367,2512.0,2511.9,3.9810502]
[1748871408820,0.5367,2512.0,2511.9,8.4680502]
[1748871409679,0.5367,2512.0,2511.8,5.29717423]
[1748871409680,0.5367,2512.0,2511.8,5.29816075]
[1748871409886,1.06788004,2512.0,2511.8,1.317]
[1748871410110,0.5367,2512.0,2511.8,1.317]
[1748871410320,0.5367,2512.0,2511.7,8.597]
[1748871410479,0.8255,2511.9,2511.7,3.98132263]
[1748871410683,0.8255,2511.9,2511.6,3.98146956]
[1748871410923,0.8255,2511.9,2511.7,3.98127791]
[1748871411219,0.5367,2512.0,2511.9,3.9810502]
[1748871411585,0.5367,2512.0,2511.9,4.0208539]
[1748871411789,0.5367,2512.0,2511.9,9.7890502]
[1748871411989,0.5367,2512.0,2511.9,3.9810502]
[1748871412191,0.5367,2512.0,2511.9,5.87611349]
[1748871412395,0.5367,2512.0,2511.9,4.55911349]
[1748871412933,0.5367,2512.0,2511.9,10.36711349]
[1748871413101,0.5367,2512.0,2511.9,10.36611349]
[1748871413298,0.5367,2512.0,2511.9,11.12161349]
[1748871413513,0.5367,2512.0,2511.9,4.55911349]
[1748871413718,0.5367,2512.0,2511.9,9.8288529]
[1748871414023,0.5367,2512.0,2511.9,9.7890502]
[1748871414414,0.5367,2512.0,2511.9,3.9810502]
[1748871414618,1.3308,2512.0,2511.9,3.9810502]
[1748871417298,1.3308,2512.0,2511.7,3.98127422]
[1748871417634,1.3308,2512.0,2511.9,3.9810502]
[1748871419625,1.3308,2512.0,2511.8,8.46015137]
[1748871419812,1.3308,2512.0,2511.5,1.317]
[1748871420136,5.84286406,2512.0,2511.5,5.29860444]
[1748871420342,0.7982,2511.9,2511.1,1.317]
[1748871420645,0.7982,2511.8,2511.1,1.317]
[1748871420858,0.7982,2511.8,2511.6,3.98143659]
[1748871421139,0.7982,2511.8,2511.7,3.9813672]
[1748871421469,0.7982,2511.8,2511.5,1.317]
[1748871421808,0.7982,2511.8,2511.7,3.9813672]
[1748871422016,0.5367,2512.0,2511.9,3.9810502]
[1748871422337,0.5367,2512.0,2511.9,8.4640502]
[1748871422911,0.5367,2512.0,2511.9,9.70857285]
[1748871423113,0.5367,2512.0,2511.9,10.48207285]
[1748871423414,0.5367,2512.0,2511.9,18.48207285]
[1748871423828,0.5367,2512.0,2511.9,6.54257285]
[1748871424028,0.5367,2512.0,2511.9,9.7800502]
[1748871424635,0.5367,2512.0,2511.9,9.7790502]
[1748871425321,0.5367,2512.0,2511.9,9.7830502]
[1748871425548,1.3421,2512.0,2511.9,1.317]
[1748871425764,1.3421,2512.0,2511.5,3.98164242]
[1748871425765,1.3421,2512.0,2511.5,3.98168425]
[1748871425965,1.87439153,2512.0,2511.6,3.98144078]
[1748871426113,1.87439153,2512.0,2511.7,3.98135011]
[1748871426315,1.3421,2512.0,2511.5,4.485]
[1748871426619,1.3421,2512.0,2511.6,4.485]
[1748871426815,1.3421,2512.0,2511.9,3.9810502]
[1748871427020,1.3421,2512.0,2511.6,5.801]
[1748871427233,1.3421,2512.0,2511.9,3.9810502]
[1748871428151,0.5367,2512.0,2511.9,4.8210623]
[1748871428327,0.5367,2512.0,2511.9,4.78125453]
[1748871428664,0.5367,2512.0,2511.9,9.7790502]
[1748871428864,0.5367,2512.0,2511.4,8.0]
[1748871429070,0.5367,2512.0,2511.8,3.98119301]
[1748871429236,0.5367,2512.0,2511.5,3.98168425]
[1748871429773,4.51759833,2512.0,2511.6,3.98137104]
[1748871430067,0.5367,2512.0,2511.7,3.98133546]
[1748871430271,0.5367,2512.0,2511.6,3.98144417]
[1748871430415,0.5367,2512.0,2511.7,3.98136497]
[1748871430820,0.5367,2512.0,2511.6,3.98151113]
[1748871431076,0.5367,2512.0,2511.5,9.7886273]
[1748871431077,4.74705198,2511.9,2511.5,9.7886273]
[1748871431215,1.2943752,2511.9,2511.5,1.317]
[1748871431557,0.766,2511.8,2511.3,3.98197117]
[1748871431852,0.766,2511.8,2511.4,3.98175271]
[1748871432053,4.74721351,2511.8,2511.3,3.98190178]
[1748871432256,4.74721351,2511.8,2511.1,0.03981829]
[1748871432257,0.766,2511.8,2511.1,0.03981829]
[1748871432459,0.766,2511.8,2511.1,5.807]
[1748871432630,3.9819857,2511.4,2511.1,1.317]
[1748871432965,0.8099,2511.3,2511.1,1.317]
[1748871433423,0.8099,2511.3,2511.1,5.29922898]
[1748871433613,0.8099,2511.3,2511.1,1.317]
[1748871433828,0.8099,2511.9,2511.3,3.98198763]
[1748871434031,0.8099,2511.9,2511.7,3.98128067]
[1748871434265,0.8099,2511.9,2511.4,4.52581519]
[1748871434431,0.8099,2511.9,2511.5,3.98164438]
[1748871434636,0.8099,2511.9,2511.4,4.486]
[1748871434637,0.7628,2511.3,2510.9,1.317]
[1748871435174,3.9824771,2511.0,2510.9,1.317]
[1748871435376,0.7552,2511.0,2510.9,1.317]
[1748871435526,4.7376771,2511.0,2510.9,1.317]
[1748871435724,0.55,2510.9,2510.1,0.02]
[1748871435947,3.98321587,2510.6,2510.1,0.02]
[1748871436226,3.98338471,2510.5,2510.1,0.02]
[1748871436430,0.7698,2510.7,2510.1,0.02]
[1748871436682,3.98334631,2510.5,2510.1,0.02]
[1748871436880,4.75276977,2510.7,2510.1,0.02]
[1748871437063,4.80844631,2510.2,2510.1,0.02]
[1748871440676,0.8247,2510.2,2510.1,4.00390502]
[1748871440879,0.7758,2510.6,2510.1,4.00390502]
[1748871441083,0.7758,2510.6,2510.2,10.25716814]
[1748871441377,0.7758,2511.4,2510.6,3.9831116]
[1748871441577,3.98227504,2511.2,2510.6,3.9831116]
[1748871441778,0.7758,2511.4,2510.3,11.73818495]
[1748871442077,0.7758,2511.4,2510.5,4.534]
[1748871442277,0.7758,2511.4,2510.6,4.02291497]
[1748871442477,4.75766491,2511.4,2510.6,4.02291497]
[1748871442678,3.9824048,2511.1,2510.6,3.98307076]
[1748871442881,0.8211,2511.1,2510.4,5.849]
[1748871443087,4.80349626,2511.1,2510.6,3.98310338]
[1748871443589,3.98248159,2511.0,2510.5,3.98319758]
[1748871444156,0.8144,2511.5,2510.6,11.07709696]
[1748871444492,0.8144,2511.5,2510.9,10.25716814]
[1748871444664,0.7769,2511.9,2511.4,3.98184279]
[1748871444867,0.7769,2511.9,2511.2,10.25716814]
[1748871444868,0.7769,2511.9,2511.7,3.98135624]
[1748871445065,0.7769,2511.9,2511.2,11.57116814]
[1748871445066,0.773,2512.2,2511.8,3.98106342]
[1748871445267,0.773,2512.5,2511.9,4.02085983]
[1748871445685,0.773,2512.5,2511.9,3.9810502]
[1748871445997,4.75310763,2512.5,2511.9,3.9810502]
[1748871446161,4.75318288,2512.5,2511.9,3.9810502]
[1748871446358,0.773,2512.5,2511.8,5.849]
[1748871446564,3.98055939,2512.3,2511.8,5.849]
[1748871446906,3.98055939,2512.3,2511.8,9.8301516]
[1748871447204,3.98034152,2512.4,2511.9,3.9810502]
[1748871447408,0.773,2512.5,2511.8,1.314]
[1748871447614,4.75311455,2512.5,2511.8,1.314]
[1748871447772,0.7818,2511.9,2511.2,10.25716814]
[1748871447970,3.981521,2511.7,2511.3,1.314]
[1748871448404,0.7818,2511.9,2511.8,3.98120869]
[1748871448568,0.5367,2512.0,2511.9,3.9810502]
[1748871448768,0.5367,2512.0,2511.6,4.534]
[1748871449012,4.5176705,2512.0,2511.5,3.98164156]
[1748871449511,4.5176705,2512.0,2511.4,4.533]
[1748871449512,3.9813672,2511.7,2511.0,5.29639326]
[1748871449715,0.7818,2511.8,2511.0,5.29639326]
[1748871449716,0.7818,2511.8,2511.0,1.3538208]
[1748871449920,3.98152291,2511.7,2511.2,3.98213369]
[1748871450197,0.7818,2511.8,2511.2,3.98213369]
[1748871450513,4.76309222,2511.8,2511.3,3.98196925]
[1748871450723,0.87441952,2511.7,2511.2,3.98207299]
[1748871450891,0.87441952,2511.7,2511.1,3.98229086]
[1748871450892,3.98152602,2511.6,2511.1,3.9822322]
[1748871451219,3.98180732,2511.5,2510.8,3.98279432]
[1748871451436,0.7818,2511.6,2511.5,3.98168425]
[1748871451634,0.7818,2511.9,2511.6,3.9814426]
[1748871451784,0.5367,2512.0,2511.6,10.25716814]
[1748871451983,0.5367,2512.0,2511.8,3.98111362]
[1748871452317,0.5367,2512.0,2511.3,10.25716814]
[1748871452617,0.5367,2512.0,2511.4,6.95870681]
[1748871452916,0.5367,2512.0,2511.3,3.98198727]
[1748871453122,0.754,2511.9,2511.5,3.98167107]
[1748871453419,0.754,2511.9,2511.6,3.98147804]
[1748871453906,0.754,2511.9,2511.5,3.98161284]
[1748871454241,0.754,2511.9,2511.7,3.98135081]
[1748871454532,0.5367,2512.0,2511.7,3.9813672]
[1748871454730,0.5367,2512.0,2511.3,14.79816814]
[1748871454909,0.5367,2512.0,2511.3,3.98195435]
[1748871455099,0.5367,2512.0,2511.4,5.853]
[1748871455299,0.5367,2512.0,2511.7,3.98134073]
[1748871455680,0.5367,2512.0,2511.6,3.98145598]
[1748871455931,0.5367,2512.0,2511.6,3.98144704]
[1748871456239,1.06560153,2512.0,2511.0,10.25716814]
[1748871456532,0.7656,2511.7,2511.3,3.98188422]
[1748871456695,4.74703585,2511.7,2511.2,3.98215785]
[1748871456898,0.7656,2511.7,2511.2,3.98215785]
[1748871457115,4.74703166,2511.7,2511.2,3.98215785]
[1748871457406,4.74697525,2511.7,2511.2,3.98207724]
[1748871457598,0.47470317,2511.6,2511.2,3.98206035]
[1748871457801,0.47470317,2511.6,2511.3,3.98196433]
[1748871458009,0.47470317,2511.6,2511.0,1.314]
[1748871458325,3.98184458,2511.4,2511.0,1.314]
[1748871458521,3.98205709,2511.3,2511.0,1.314]
[1748871458695,3.98191224,2511.4,2510.9,3.98263356]
[1748871459021,0.7656,2511.7,2511.5,3.98166262]
[1748871459222,0.7656,2511.7,2511.0,10.25716814]
[1748871459421,4.7470041,2511.7,2511.2,3.98208766]
[1748871459628,3.98185884,2511.4,2510.7,10.25716814]
[1748871459789,3.98169821,2511.5,2511.1,3.98221113]
[1748871459987,3.98169821,2511.5,2511.0,3.98242148]
[1748871460185,4.45642803,2511.5,2511.0,3.98242148]
[1748871460382,3.98199872,2511.4,2510.9,4.522]
[1748871460622,0.809,2511.2,2510.8,1.314]
[1748871460920,3.98251741,2511.0,2510.8,1.314]
[1748871461125,3.9826357,2510.9,2510.3,3.98349952]
[1748871461421,0.39826357,2510.9,2510.6,3.98303757]
[1748871461583,0.809,2511.2,2510.3,4.52]
[1748871461783,0.8188,2511.0,2510.2,1.314]
[1748871461980,3.98294443,2510.8,2510.2,1.314]
[1748871462215,0.48017444,2510.7,2510.2,1.314]
[1748871462426,0.8188,2511.7,2510.8,3.98279432]
[1748871462622,3.98215293,2511.3,2510.7,3.9829294]
[1748871462820,0.8188,2511.5,2510.6,4.526]
[1748871463021,3.98224053,2511.2,2510.7,3.98293811]
[1748871463224,3.98201137,2511.3,2510.8,3.98271502]
[1748871463423,0.4800347,2511.4,2510.6,4.526]
[1748871463624,3.98226343,2511.2,2510.7,3.98289819]
[1748871463803,3.98234223,2511.1,2510.6,4.526]
[1748871464002,0.87832035,2511.1,2510.7,3.98286726]
[1748871464227,0.8188,2511.3,2510.6,0.03982947]
[1748871464413,0.8188,2511.3,2510.6,4.02292993]
[1748871464604,0.8188,2511.3,2510.9,3.98252285]
[1748871464931,0.8188,2511.3,2510.9,3.9826357]
[1748871465097,0.8188,2511.3,2510.9,3.98262202]
[1748871465406,4.80080187,2511.3,2510.9,3.98262202]
[1748871465588,3.98248533,2511.0,2510.5,3.98317821]
[1748871465793,5.72710738,2511.3,2510.4,5.831]
[1748871466014,5.72710738,2511.3,2510.6,3.98302428]
[1748871466015,3.98232222,2511.1,2510.6,3.98302428]
[1748871466225,3.98242717,2511.1,2510.6,3.98307611]
[1748871466400,3.98227466,2511.2,2510.7,3.98294623]
[1748871466605,3.98227466,2511.2,2510.4,5.831]
[1748871466606,4.55516278,2511.1,2510.6,3.98302876]
[1748871466794,4.55516278,2511.1,2510.5,4.518]
[1748871466795,3.98275993,2510.9,2510.5,4.518]
[1748871467127,3.98255256,2511.0,2510.5,8.50119925]
[1748871467334,3.98255256,2511.0,2510.6,3.98309687]
[1748871467533,4.79036353,2510.9,2510.3,3.98352463]
[1748871467842,0.7699,2511.2,2510.4,10.2969975]
[1748871468037,0.7699,2511.5,2511.1,3.98222723]
[1748871468210,0.7699,2511.5,2511.0,3.98246044]
[1748871468535,0.7699,2511.5,2511.3,3.98191056]
[1748871468688,0.7699,2511.5,2510.9,8.50161578]
[1748871468689,0.7699,2511.5,2511.1,3.98224975]
[1748871468895,0.7699,2511.5,2511.0,1.326]
[1748871469122,3.98209075,2511.3,2511.0,1.326]
[1748871469344,4.75230619,2511.1,2510.4,1.326]
[1748871469519,3.9826128,2511.0,2510.4,1.326]
[1748871469720,0.7699,2511.1,2510.4,1.326]
[1748871469909,3.98275357,2510.9,2510.4,5.30929291]
[1748871470115,3.98284456,2510.8,2510.4,1.326]
[1748871470295,0.47526536,2510.9,2510.5,3.9832092]
[1748871470491,3.98255482,2511.0,2510.4,5.30936031]
[1748871470836,0.7699,2511.1,2510.4,1.326]
[1748871471127,0.7699,2511.1,2510.6,3.98299658]
[1748871471331,3.98256279,2511.0,2510.5,3.98327026]
[1748871471529,4.7523124,2511.1,2510.6,3.98300481]
[1748871471826,0.47523124,2511.0,2510.4,1.326]
[1748871472031,0.7699,2511.1,2510.6,3.9831116]
[1748871472231,3.98201626,2511.3,2510.7,4.509]
[1748871472409,3.98205344,2511.3,2510.5,4.75772534]
[1748871472604,3.98237904,2511.1,2510.6,3.98300129]
[1748871472929,3.98261494,2511.0,2510.5,8.49520261]
[1748871473132,0.7988,2510.9,2510.7,3.98287514]
[1748871473341,0.7988,2510.9,2510.7,3.98280019]
[1748871473524,0.7988,2510.9,2510.6,3.98302891]
[1748871473724,0.8287,2511.3,2510.9,3.98253579]
[1748871473929,4.8107307,2511.3,2510.8,3.98271121]
[1748871474127,0.8287,2511.3,2510.7,3.98283321]
[1748871474537,0.8287,2511.3,2510.9,3.98251294]
[1748871474841,0.8287,2511.3,2510.7,3.98295296]
[1748871475020,0.8287,2511.3,2510.9,3.9825122]
[1748871475218,0.8287,2511.3,2511.2,3.98215992]
[1748871475540,3.98160612,2511.6,2511.1,3.98223693]
[1748871476115,3.98143072,2511.7,2511.1,3.98223693]
[1748871476306,0.7873,2511.9,2511.2,1.326]
[1748871476669,0.5367,2512.0,2511.9,3.9810502]
[1748871476808,0.5367,2512.0,2511.9,9.3017502]
[1748871477008,0.5367,2512.0,2511.9,27.55891834]
[1748871477209,0.5367,2512.0,2511.9,28.10891834]
[1748871477448,0.5367,2512.0,2511.9,27.55891834]
[1748871477652,0.5367,2512.0,2511.9,17.3017502]
[1748871477855,0.5367,2512.0,2511.9,28.10891834]
[1748871479050,0.5367,2512.0,2511.9,27.55891834]
[1748871479447,0.5367,2512.0,2511.9,23.05491834]
[1748871479623,0.5367,2512.0,2511.9,5.3070502]
[1748871480018,0.5367,2512.0,2511.9,1.326]
[1748871480369,0.5367,2512.0,2511.9,5.3070502]
[1748871480537,0.5367,2512.0,2511.9,5.34685487]
[1748871480736,0.5367,2512.0,2511.9,13.3070502]
[1748871481653,0.5367,2512.0,2511.9,23.56421834]
[1748871481867,0.5367,2512.0,2511.9,24.11421834]
[1748871482149,0.5367,2512.0,2511.9,24.90891834]
[1748871482958,0.02,2512.9,2512.8,3.97962432]
[1748871483131,0.02,2512.9,2512.8,10.60782432]
[1748871483718,0.02,2512.9,2512.8,3.97962432]
[1748871483956,0.02,2512.9,2512.8,5.82]
[1748871484158,0.02,2512.9,2512.8,9.8394195]
[1748871484388,0.02,2512.9,2512.8,9.79962432]
[1748871484565,0.02,2512.9,2512.8,17.79962432]
[1748871485558,0.02,2512.9,2512.8,3.97962432]
[1748871485769,0.02,2512.9,2512.8,9.79562432]
[1748871486269,0.02,2512.9,2512.7,3.97966802]
[1748871486467,0.02,2512.9,2512.8,9.83341696]
[1748871486669,0.02,2513.9,2513.8,4.79334121]
[1748871486973,0.02,2513.9,2513.8,19.11767533]
[1748871487343,0.02,2513.9,2513.8,19.11867533]
[1748871487736,0.02,2513.9,2513.8,19.66867533]
[1748871488053,0.02,2513.9,2513.8,19.11767533]
[1748871488263,0.02,2513.9,2513.8,14.63844121]
[1748871488792,0.02,2514.9,2514.8,4.80245936]
[1748871488947,0.02,2514.9,2514.8,9.84645936]
[1748871490355,0.02,2514.9,2514.8,10.39645936]
[1748871490558,0.02,2514.9,2514.8,9.84645936]
[1748871490754,0.02,2514.9,2514.8,11.77876491]
[1748871490957,0.02,2514.9,2514.8,13.35876491]
[1748871491297,0.02,2514.9,2514.5,0.826]
[1748871491602,0.02,2514.9,2514.4,12.57194968]
[1748871491805,3.97677563,2514.6,2514.5,1.325]
[1748871492104,0.02,2514.9,2514.6,3.9767376]
[1748871492270,0.02,2514.9,2514.6,3.97677563]
[1748871492604,0.02,2514.9,2514.8,3.97645936]
[1748871494005,0.02,2514.9,2514.8,9.84445936]
[1748871494436,0.02,2514.9,2514.8,17.84445936]
[1748871494568,0.02,2514.9,2514.8,18.66895936]
[1748871494771,0.02,2514.9,2514.8,12.80095936]
[1748871495000,0.02,2514.9,2514.8,19.64065755]
[1748871495217,0.02,2514.9,2514.8,20.19065755]
[1748871495423,0.02,2514.9,2514.8,13.77065755]
[1748871495581,0.02,2514.9,2514.8,18.66995936]
[1748871495800,0.02,2514.9,2514.8,13.30145936]